[Event "Titled Tuesday Blitz October 18 Late 2022"]
[White "Adewumi, Tanitoluwa"]
[Black "Mahdavi, Reza"]
[WhiteFideId "30966396"]
[BlackFideId "12595926"]
[WhiteElo "2543"]
[BlackElo "2240"]
[Result "0-1"]
[Round "03"]
[TimeControl "180+1"]
[Date "2022.10.18"]
[WhiteClock "0:00:56"]
[BlackClock "0:02:09"]

1. Nf3 {[%clk 0:02:44]}  Nf6 {[%clk 0:02:56]} 2. d4 {[%clk 0:02:42]}  g6 {[%clk 0:02:56]} 3. Nc3 {[%clk 0:02:41]}  d5 {[%clk 0:02:56]} 4. Bg5 {[%clk 0:02:41]}  Bg7 {[%clk 0:02:57]} 5. Bxf6 {[%clk 0:02:41]}  Bxf6 {[%clk 0:02:58]} 6. e4 {[%clk 0:02:42]}  c6 {[%clk 0:02:53]} 7. e5 {[%clk 0:02:42]}  Bg7 {[%clk 0:02:53]} 8. h4 {[%clk 0:02:42]}  h5 {[%clk 0:02:52]} 9. Bd3 {[%clk 0:02:42]}  Bg4 {[%clk 0:02:51]} 10. Ne2 {[%clk 0:02:42]}  Bxf3 {[%clk 0:02:45]} 11. gxf3 {[%clk 0:02:42]}  e6 {[%clk 0:02:46]} 12. Nf4 {[%clk 0:02:42]}  Qe7 {[%clk 0:02:42]} 13. c3 {[%clk 0:02:38]}  Bh6 {[%clk 0:02:42]} 14. Ng2 {[%clk 0:02:27]}  Nd7 {[%clk 0:02:36]} 15. b4 {[%clk 0:02:23]}  a5 {[%clk 0:02:30]} 16. b5 {[%clk 0:02:14]}  Kf8 {[%clk 0:02:28]} 17. bxc6 {[%clk 0:02:05]}  bxc6 {[%clk 0:02:29]} 18. Rb1 {[%clk 0:02:05]}  Kg7 {[%clk 0:02:28]} 19. Rg1 {[%clk 0:02:03]}  Rhb8 {[%clk 0:02:27]} 20. f4 {[%clk 0:02:01]}  Qa3 {[%clk 0:02:25]} 21. Rc1 {[%clk 0:01:56]}  c5 {[%clk 0:02:19]} 22. Ne3 {[%clk 0:01:32]}  Bxf4 {[%clk 0:02:14]} 23. Rc2 {[%clk 0:01:22]}  cxd4 {[%clk 0:02:11]} 24. Qxh5 {[%clk 0:00:56]}  Nxe5 {[%clk 0:02:09]} 0-1


[Site "https://www.chess.com"]

[Event "Titled Tuesday Blitz October 18 Late 2022"]
[White "Aggelis, Nikolaos"]
[Black "Yano, William Jorge Froes"]
[WhiteFideId "4213220"]
[BlackFideId "2112949"]
[WhiteElo "2187"]
[BlackElo "2122"]
[Result "1-0"]
[Round "03"]
[TimeControl "180+1"]
[Date "2022.10.19"]
[WhiteClock "0:00:12"]
[BlackClock "0:00:08"]

1. e4 {[%clk 0:03:00]}  e6 {[%clk 0:03:00]} 2. d4 {[%clk 0:03:00]}  d5 {[%clk 0:03:00]} 3. Nd2 {[%clk 0:03:00]}  h6 {[%clk 0:03:00]} 4. Bd3 {[%clk 0:02:59]}  Nf6 {[%clk 0:02:59]} 5. Ne2 {[%clk 0:02:59]}  c5 {[%clk 0:02:59]} 6. c3 {[%clk 0:02:59]}  Nc6 {[%clk 0:02:59]} 7. O-O {[%clk 0:02:56]}  Be7 {[%clk 0:02:56]} 8. Re1 {[%clk 0:02:49]}  a6 {[%clk 0:02:54]} 9. exd5 {[%clk 0:02:44]}  Nxd5 {[%clk 0:02:53]} 10. Nf3 {[%clk 0:02:42]}  Qb6 {[%clk 0:02:30]} 11. Qb3 {[%clk 0:02:14]}  Qxb3 {[%clk 0:02:22]} 12. axb3 {[%clk 0:02:15]}  cxd4 {[%clk 0:02:19]} 13. Nexd4 {[%clk 0:02:13]}  Bd7 {[%clk 0:02:18]} 14. Nxc6 {[%clk 0:02:05]}  Bxc6 {[%clk 0:02:15]} 15. Ne5 {[%clk 0:02:03]}  Rc8 {[%clk 0:01:18]} 16. Nxc6 {[%clk 0:02:00]}  Rxc6 {[%clk 0:01:18]} 17. b4 {[%clk 0:01:55]}  O-O {[%clk 0:00:53]} 18. b5 {[%clk 0:01:50]}  axb5 {[%clk 0:00:53]} 19. Bxb5 {[%clk 0:01:50]}  Rcc8 {[%clk 0:00:48]} 20. Ra7 {[%clk 0:01:46]}  Bc5 {[%clk 0:00:12]} 21. Rxb7 {[%clk 0:01:43]}  Rb8 {[%clk 0:00:13]} 22. Rxb8 {[%clk 0:01:35]}  Rxb8 {[%clk 0:00:14]} 23. Bc4 {[%clk 0:01:25]}  Nb6 {[%clk 0:00:12]} 24. Bd3 {[%clk 0:01:23]}  Na4 {[%clk 0:00:11]} 25. b4 {[%clk 0:01:15]}  Be7 {[%clk 0:00:10]} 26. Bd2 {[%clk 0:01:08]}  Nb2 {[%clk 0:00:09]} 27. Bf1 {[%clk 0:01:04]}  Rc8 {[%clk 0:00:09]} 28. Rc1 {[%clk 0:01:03]}  Nc4 {[%clk 0:00:08]} 29. Be1 {[%clk 0:01:01]}  e5 {[%clk 0:00:08]} 30. b5 {[%clk 0:00:56]}  e4 {[%clk 0:00:08]} 31. Rb1 {[%clk 0:00:54]}  Nb6 {[%clk 0:00:08]} 32. Ra1 {[%clk 0:00:51]}  Bc5 {[%clk 0:00:08]} 33. c4 {[%clk 0:00:46]}  f5 {[%clk 0:00:09]} 34. Be2 {[%clk 0:00:43]}  Bd4 {[%clk 0:00:09]} 35. Rc1 {[%clk 0:00:41]}  Bc5 {[%clk 0:00:09]} 36. Kf1 {[%clk 0:00:40]}  g5 {[%clk 0:00:09]} 37. Bc3 {[%clk 0:00:37]}  Kf7 {[%clk 0:00:10]} 38. Ra1 {[%clk 0:00:35]}  Ke6 {[%clk 0:00:09]} 39. Ra7 {[%clk 0:00:35]}  Bd6 {[%clk 0:00:09]} 40. Rh7 {[%clk 0:00:33]}  Nxc4 {[%clk 0:00:07]} 41. Rxh6+ {[%clk 0:00:33]}  Kd5 {[%clk 0:00:08]} 42. Rh5 {[%clk 0:00:28]}  Na3 {[%clk 0:00:01]} 43. Bd2 {[%clk 0:00:23]}  Nc2 {[%clk 0:00:02]} 44. Rxg5 {[%clk 0:00:22]}  Ke6 {[%clk 0:00:03]} 45. Rg6+ {[%clk 0:00:21]}  Ke5 {[%clk 0:00:03]} 46. h4 {[%clk 0:00:20]}  Nd4 {[%clk 0:00:04]} 47. Bd1 {[%clk 0:00:19]}  Nxb5 {[%clk 0:00:03]} 48. h5 {[%clk 0:00:18]}  Be7 {[%clk 0:00:04]} 49. h6 {[%clk 0:00:17]}  Rd8 {[%clk 0:00:04]} 50. Ke1 {[%clk 0:00:16]}  Bf6 {[%clk 0:00:04]} 51. h7 {[%clk 0:00:15]}  Nd4 {[%clk 0:00:05]} 52. Rg8 {[%clk 0:00:15]}  Rd7 {[%clk 0:00:04]} 53. h8=Q {[%clk 0:00:15]}  Bxh8 {[%clk 0:00:04]} 54. Rxh8 {[%clk 0:00:16]}  f4 {[%clk 0:00:04]} 55. Re8+ {[%clk 0:00:15]}  Kd5 {[%clk 0:00:04]} 56. Rf8 {[%clk 0:00:13]}  Rc7 {[%clk 0:00:05]} 57. Rxf4 {[%clk 0:00:13]}  Kc4 {[%clk 0:00:05]} 58. Rxe4 {[%clk 0:00:13]}  Kd3 {[%clk 0:00:06]} 59. Be2+ {[%clk 0:00:12]}  Nxe2 {[%clk 0:00:06]} 60. Re3+ {[%clk 0:00:11]}  Kc2 {[%clk 0:00:05]} 61. Kxe2 {[%clk 0:00:11]}  Kb1 {[%clk 0:00:06]} 62. f3 {[%clk 0:00:11]}  Kc2 {[%clk 0:00:06]} 63. g4 {[%clk 0:00:12]}  Rf7 {[%clk 0:00:06]} 64. Re4 {[%clk 0:00:13]}  Kb3 {[%clk 0:00:06]} 65. Ke3 {[%clk 0:00:12]}  Kc2 {[%clk 0:00:06]} 66. f4 {[%clk 0:00:13]}  Rd7 {[%clk 0:00:06]} 67. Rd4 {[%clk 0:00:13]}  Re7+ {[%clk 0:00:06]} 68. Kf3 {[%clk 0:00:14]}  Kd1 {[%clk 0:00:05]} 69. f5 {[%clk 0:00:14]}  Rf7 {[%clk 0:00:05]} 70. Rd6 {[%clk 0:00:12]}  Kc2 {[%clk 0:00:06]} 71. f6 {[%clk 0:00:12]}  Kb3 {[%clk 0:00:05]} 72. g5 {[%clk 0:00:13]}  Kc4 {[%clk 0:00:06]} 73. g6 {[%clk 0:00:13]}  Rf8 {[%clk 0:00:06]} 74. g7 {[%clk 0:00:13]}  Rf7 {[%clk 0:00:07]} 75. g8=Q {[%clk 0:00:13]}  Kc5 {[%clk 0:00:07]} 76. Qxf7 {[%clk 0:00:12]}  Kxd6 {[%clk 0:00:08]} 77. Qe7+ {[%clk 0:00:12]} 1-0


[Site "https://www.chess.com"]

[Event "Titled Tuesday Blitz October 18 Late 2022"]
[White "Aldokhin, Ivan"]
[Black "D`Arruda, Ricardo D."]
[WhiteFideId "24115720"]
[BlackFideId "100692"]
[WhiteElo "2313"]
[BlackElo "2401"]
[Result "1-0"]
[Round "03"]
[TimeControl "180+1"]
[Date "2022.10.19"]
[WhiteClock "0:00:04"]
[BlackClock "0:00:23"]

1. e4 {[%clk 0:02:42]}  c5 {[%clk 0:02:58]} 2. Nf3 {[%clk 0:02:42]}  Nc6 {[%clk 0:02:57]} 3. d4 {[%clk 0:02:43]}  cxd4 {[%clk 0:02:57]} 4. Nxd4 {[%clk 0:02:44]}  e5 {[%clk 0:02:58]} 5. Nxc6 {[%clk 0:02:44]}  bxc6 {[%clk 0:02:56]} 6. c4 {[%clk 0:02:44]}  Nf6 {[%clk 0:02:56]} 7. Bd3 {[%clk 0:02:40]}  Bc5 {[%clk 0:02:54]} 8. O-O {[%clk 0:02:39]}  O-O {[%clk 0:02:54]} 9. Nd2 {[%clk 0:02:39]}  d6 {[%clk 0:02:49]} 10. Nb3 {[%clk 0:02:39]}  Bb6 {[%clk 0:02:49]} 11. c5 {[%clk 0:02:34]}  dxc5 {[%clk 0:02:37]} 12. Qc2 {[%clk 0:02:32]}  Be6 {[%clk 0:02:20]} 13. Be3 {[%clk 0:02:24]}  Nd7 {[%clk 0:02:09]} 14. Bc4 {[%clk 0:02:12]}  Qe7 {[%clk 0:01:58]} 15. Rfd1 {[%clk 0:01:59]}  Rfd8 {[%clk 0:01:57]} 16. a4 {[%clk 0:01:40]}  a5 {[%clk 0:01:29]} 17. h3 {[%clk 0:01:32]}  h6 {[%clk 0:01:28]} 18. Bxe6 {[%clk 0:01:31]}  Qxe6 {[%clk 0:01:29]} 19. Nxc5 {[%clk 0:01:28]}  Nxc5 {[%clk 0:01:24]} 20. Bxc5 {[%clk 0:01:27]}  Bxc5 {[%clk 0:01:24]} 21. Qxc5 {[%clk 0:01:27]}  Rxd1+ {[%clk 0:01:18]} 22. Rxd1 {[%clk 0:01:26]}  Qb3 {[%clk 0:01:18]} 23. Rd7 {[%clk 0:01:13]}  Qxa4 {[%clk 0:01:12]} 24. Qxe5 {[%clk 0:01:06]}  Qc2 {[%clk 0:00:49]} 25. Qd4 {[%clk 0:00:40]}  a4 {[%clk 0:00:42]} 26. e5 {[%clk 0:00:41]}  Qb3 {[%clk 0:00:38]} 27. Re7 {[%clk 0:00:27]}  Rb8 {[%clk 0:00:34]} 28. e6 {[%clk 0:00:22]}  Qxb2 {[%clk 0:00:31]} 29. exf7+ {[%clk 0:00:20]}  Kf8 {[%clk 0:00:31]} 30. Qd6 {[%clk 0:00:05]}  Qb4 {[%clk 0:00:23]} 31. Re8+ {[%clk 0:00:03]}  Kxf7 {[%clk 0:00:23]} 32. Qe6# {[%clk 0:00:04]} 1-0


[Site "https://www.chess.com"]

[Event "Titled Tuesday Blitz October 18 Late 2022"]
[White "Arnold, Ken"]
[Black "Sernecki, Franciszek"]
[WhiteFideId "2056836"]
[BlackFideId "1169297"]
[WhiteElo "2349"]
[BlackElo "2209"]
[Result "0-1"]
[Round "03"]
[TimeControl "180+1"]
[Date "2022.10.19"]
[WhiteClock "0:00:37"]
[BlackClock "0:01:19"]

1. d4 {[%clk 0:03:00]}  d5 {[%clk 0:03:00]} 2. c4 {[%clk 0:03:00]}  Nc6 {[%clk 0:03:00]} 3. cxd5 {[%clk 0:03:00]}  Qxd5 {[%clk 0:03:01]} 4. Nf3 {[%clk 0:02:59]}  e5 {[%clk 0:03:01]} 5. e3 {[%clk 0:02:54]}  exd4 {[%clk 0:02:57]} 6. exd4 {[%clk 0:02:54]}  Nf6 {[%clk 0:02:57]} 7. Nc3 {[%clk 0:02:54]}  Bb4 {[%clk 0:02:58]} 8. Bd2 {[%clk 0:02:53]}  Bxc3 {[%clk 0:02:57]} 9. Bxc3 {[%clk 0:02:52]}  O-O {[%clk 0:02:58]} 10. Be2 {[%clk 0:02:52]}  Re8 {[%clk 0:02:56]} 11. O-O {[%clk 0:02:52]}  Bg4 {[%clk 0:02:56]} 12. h3 {[%clk 0:02:50]}  Bh5 {[%clk 0:02:56]} 13. Re1 {[%clk 0:02:48]}  Rad8 {[%clk 0:02:56]} 14. Qb3 {[%clk 0:02:41]}  Qxb3 {[%clk 0:02:56]} 15. axb3 {[%clk 0:02:39]}  a6 {[%clk 0:02:57]} 16. b4 {[%clk 0:02:38]}  Bxf3 {[%clk 0:02:56]} 17. Bxf3 {[%clk 0:02:38]}  Rxe1+ {[%clk 0:02:54]} 18. Rxe1 {[%clk 0:02:33]}  Kf8 {[%clk 0:02:54]} 19. Ra1 {[%clk 0:02:26]}  Nd5 {[%clk 0:02:52]} 20. Kf1 {[%clk 0:02:14]}  Nce7 {[%clk 0:02:51]} 21. b5 {[%clk 0:02:12]}  axb5 {[%clk 0:02:50]} 22. Ra7 {[%clk 0:02:10]}  Rb8 {[%clk 0:02:50]} 23. Bd2 {[%clk 0:02:08]}  c6 {[%clk 0:02:49]} 24. Be4 {[%clk 0:02:02]}  h6 {[%clk 0:02:46]} 25. f3 {[%clk 0:01:48]}  Ke8 {[%clk 0:02:41]} 26. Be1 {[%clk 0:01:46]}  f5 {[%clk 0:02:40]} 27. Bd3 {[%clk 0:01:42]}  g5 {[%clk 0:02:39]} 28. h4 {[%clk 0:01:40]}  Kd7 {[%clk 0:02:39]} 29. hxg5 {[%clk 0:01:39]}  hxg5 {[%clk 0:02:39]} 30. Bd2 {[%clk 0:01:39]}  f4 {[%clk 0:02:39]} 31. g3 {[%clk 0:01:38]}  Nc8 {[%clk 0:02:39]} 32. Ra1 {[%clk 0:01:35]}  Nd6 {[%clk 0:02:36]} 33. Kg2 {[%clk 0:01:31]}  Rh8 {[%clk 0:02:35]} 34. Re1 {[%clk 0:01:30]}  Ra8 {[%clk 0:02:14]} 35. Re5 {[%clk 0:01:16]}  Ra2 {[%clk 0:02:12]} 36. Bc1 {[%clk 0:01:16]}  Nf7 {[%clk 0:02:05]} 37. Bf5+ {[%clk 0:01:13]}  Kd8 {[%clk 0:02:00]} 38. Re6 {[%clk 0:01:12]}  Ne7 {[%clk 0:01:54]} 39. Bg4 {[%clk 0:01:06]}  Ra4 {[%clk 0:01:54]} 40. gxf4 {[%clk 0:01:05]}  gxf4 {[%clk 0:01:54]} 41. Bxf4 {[%clk 0:01:04]}  Rxd4 {[%clk 0:01:54]} 42. Be3 {[%clk 0:01:01]}  Rd6 {[%clk 0:01:53]} 43. Bb6+ {[%clk 0:01:01]}  Ke8 {[%clk 0:01:52]} 44. Rxe7+ {[%clk 0:00:55]}  Kxe7 {[%clk 0:01:50]} 45. Bc5 {[%clk 0:00:56]}  Kf6 {[%clk 0:01:50]} 46. Bxd6 {[%clk 0:00:54]}  Nxd6 {[%clk 0:01:51]} 47. Kf2 {[%clk 0:00:55]}  Ke5 {[%clk 0:01:51]} 48. b3 {[%clk 0:00:54]}  Kf4 {[%clk 0:01:51]} 49. b4 {[%clk 0:00:52]}  Nf5 {[%clk 0:01:44]} 50. Ke2 {[%clk 0:00:51]}  Nd4+ {[%clk 0:01:41]} 51. Kd3 {[%clk 0:00:51]}  Nxf3 {[%clk 0:01:41]} 52. Bc8 {[%clk 0:00:45]}  Ne5+ {[%clk 0:01:41]} 53. Kd4 {[%clk 0:00:45]}  b6 {[%clk 0:01:24]} 54. Be6 {[%clk 0:00:43]}  Nf3+ {[%clk 0:01:22]} 55. Kc3 {[%clk 0:00:42]}  Ke5 {[%clk 0:01:23]} 56. Bd7 {[%clk 0:00:42]}  Kd6 {[%clk 0:01:23]} 57. Be8 {[%clk 0:00:42]}  Ne5 {[%clk 0:01:24]} 58. Kd4 {[%clk 0:00:41]}  Nd7 {[%clk 0:01:21]} 59. Bh5 {[%clk 0:00:38]}  c5+ {[%clk 0:01:21]} 60. Kc3 {[%clk 0:00:38]}  Nf6 {[%clk 0:01:19]} 61. Bf3 {[%clk 0:00:37]}  Nd5+ {[%clk 0:01:19]} 0-1


[Site "https://www.chess.com"]

[Event "Titled Tuesday Blitz October 18 Late 2022"]
[White "Bach, Matthias"]
[Black "Marin Masis, Jose Esteban"]
[WhiteFideId "4603168"]
[BlackFideId "6508146"]
[WhiteElo "2165"]
[BlackElo "1838"]
[Result "1-0"]
[Round "03"]
[TimeControl "180+1"]
[Date "2022.10.19"]
[WhiteClock "0:01:55"]
[BlackClock "0:01:14"]

1. d4 {[%clk 0:02:57]}  Nf6 {[%clk 0:02:59]} 2. c4 {[%clk 0:02:57]}  e6 {[%clk 0:02:59]} 3. Nc3 {[%clk 0:02:58]}  Bb4 {[%clk 0:02:59]} 4. Bg5 {[%clk 0:02:58]}  O-O {[%clk 0:02:58]} 5. e3 {[%clk 0:02:58]}  h6 {[%clk 0:02:58]} 6. Bh4 {[%clk 0:02:58]}  b6 {[%clk 0:02:59]} 7. Nf3 {[%clk 0:02:57]}  Bb7 {[%clk 0:02:59]} 8. Bd3 {[%clk 0:02:54]}  d6 {[%clk 0:02:59]} 9. O-O {[%clk 0:02:53]}  Bxc3 {[%clk 0:02:58]} 10. bxc3 {[%clk 0:02:53]}  Nbd7 {[%clk 0:02:59]} 11. Nd2 {[%clk 0:02:52]}  c5 {[%clk 0:02:59]} 12. f4 {[%clk 0:02:52]}  Qc7 {[%clk 0:02:58]} 13. f5 {[%clk 0:02:51]}  e5 {[%clk 0:02:58]} 14. d5 {[%clk 0:02:51]}  Rae8 {[%clk 0:02:55]} 15. Ne4 {[%clk 0:02:48]}  Nxe4 {[%clk 0:02:54]} 16. Bxe4 {[%clk 0:02:48]}  Ba6 {[%clk 0:02:49]} 17. f6 {[%clk 0:02:46]}  g5 {[%clk 0:02:42]} 18. Bg3 {[%clk 0:02:45]}  Qd8 {[%clk 0:02:34]} 19. Qf3 {[%clk 0:02:33]}  Bxc4 {[%clk 0:02:32]} 20. Qf5 {[%clk 0:02:30]}  Nxf6 {[%clk 0:02:28]} 21. Qxf6 {[%clk 0:02:30]}  Bxf1 {[%clk 0:02:06]} 22. Rxf1 {[%clk 0:02:13]}  Qxf6 {[%clk 0:01:58]} 23. Rxf6 {[%clk 0:02:14]}  Rd8 {[%clk 0:01:55]} 24. Rxh6 {[%clk 0:02:12]}  f5 {[%clk 0:01:51]} 25. Bc2 {[%clk 0:02:09]}  Kg7 {[%clk 0:01:37]} 26. Re6 {[%clk 0:02:07]}  f4 {[%clk 0:01:35]} 27. Bf2 {[%clk 0:02:00]}  Rfe8 {[%clk 0:01:25]} 28. Rg6+ {[%clk 0:01:58]}  Kf7 {[%clk 0:01:21]} 29. Rxg5 {[%clk 0:01:58]}  Rg8 {[%clk 0:01:17]} 30. Rf5+ {[%clk 0:01:58]}  Ke7 {[%clk 0:01:15]} 31. Bh4+ {[%clk 0:01:56]}  Kd7 {[%clk 0:01:14]} 32. Bxd8 {[%clk 0:01:55]} 1-0


[Site "https://www.chess.com"]

[Event "Titled Tuesday Blitz October 18 Late 2022"]
[White "Baskakov, Egor"]
[Black "Fedoseev, Vladimir"]
[WhiteFideId "24197866"]
[BlackFideId "24130737"]
[WhiteElo "2211"]
[BlackElo "2726"]
[Result "0-1"]
[Round "03"]
[TimeControl "180+1"]
[Date "2022.10.18"]
[WhiteClock "0:01:32"]
[BlackClock "0:01:05"]

1. e4 {[%clk 0:03:00]}  c6 {[%clk 0:02:53]} 2. d4 {[%clk 0:03:00]}  d5 {[%clk 0:02:53]} 3. e5 {[%clk 0:03:00]}  c5 {[%clk 0:02:53]} 4. c4 {[%clk 0:03:00]}  e6 {[%clk 0:02:47]} 5. Nf3 {[%clk 0:03:00]}  Nc6 {[%clk 0:02:45]} 6. Nc3 {[%clk 0:02:59]}  dxc4 {[%clk 0:02:36]} 7. d5 {[%clk 0:02:55]}  exd5 {[%clk 0:02:32]} 8. Nxd5 {[%clk 0:02:56]}  Be6 {[%clk 0:02:25]} 9. Bxc4 {[%clk 0:02:51]}  b5 {[%clk 0:02:21]} 10. Bxb5 {[%clk 0:02:37]}  Qxd5 {[%clk 0:02:19]} 11. Qa4 {[%clk 0:02:37]}  Bd7 {[%clk 0:02:14]} 12. O-O {[%clk 0:02:35]}  Nd4 {[%clk 0:02:13]} 13. Nxd4 {[%clk 0:02:29]}  cxd4 {[%clk 0:02:13]} 14. Bxd7+ {[%clk 0:02:29]}  Qxd7 {[%clk 0:02:14]} 15. Qc4 {[%clk 0:02:26]}  Rc8 {[%clk 0:02:10]} 16. Qd3 {[%clk 0:02:25]}  Bc5 {[%clk 0:02:10]} 17. Qg3 {[%clk 0:02:24]}  Ne7 {[%clk 0:01:58]} 18. Qxg7 {[%clk 0:02:21]}  Rg8 {[%clk 0:01:57]} 19. Qxh7 {[%clk 0:02:21]}  Rc6 {[%clk 0:01:38]} 20. Qe4 {[%clk 0:01:46]}  Rg4 {[%clk 0:01:30]} 21. Qd3 {[%clk 0:01:41]}  Ng6 {[%clk 0:01:05]} 22. Re1 {[%clk 0:01:33]}  Nh4 {[%clk 0:01:04]} 23. g3 {[%clk 0:01:32]}  Qd5 {[%clk 0:01:05]} 0-1


[Site "https://www.chess.com"]

[Event "Titled Tuesday Blitz October 18 Late 2022"]
[White "Bilych, Olexiy"]
[Black "De La Colina, Nicolas"]
[WhiteFideId "14156504"]
[BlackFideId "30946921"]
[WhiteElo "2320"]
[BlackElo "2046"]
[Result "1-0"]
[Round "03"]
[TimeControl "180+1"]
[Date "2022.10.18"]
[WhiteClock "0:00:08"]
[BlackClock "0:00:02"]

1. e4 {[%clk 0:03:00]}  c5 {[%clk 0:02:59]} 2. Nf3 {[%clk 0:03:01]}  Nc6 {[%clk 0:02:59]} 3. d4 {[%clk 0:02:56]}  cxd4 {[%clk 0:03:00]} 4. Nxd4 {[%clk 0:02:56]}  Nf6 {[%clk 0:03:01]} 5. Nc3 {[%clk 0:02:57]}  d6 {[%clk 0:03:01]} 6. Bg5 {[%clk 0:02:55]}  Bd7 {[%clk 0:03:01]} 7. Qd2 {[%clk 0:02:45]}  h6 {[%clk 0:03:01]} 8. Bxf6 {[%clk 0:02:43]}  gxf6 {[%clk 0:03:02]} 9. Nf5 {[%clk 0:02:40]}  Qa5 {[%clk 0:02:41]} 10. Ne3 {[%clk 0:02:31]}  h5 {[%clk 0:02:30]} 11. f4 {[%clk 0:02:31]}  Rc8 {[%clk 0:02:14]} 12. O-O-O {[%clk 0:02:24]}  a6 {[%clk 0:02:05]} 13. Kb1 {[%clk 0:02:22]}  Qc5 {[%clk 0:01:49]} 14. Na4 {[%clk 0:02:01]}  Qa5 {[%clk 0:01:44]} 15. Qxa5 {[%clk 0:01:59]}  Nxa5 {[%clk 0:01:45]} 16. Nb6 {[%clk 0:01:58]}  Rd8 {[%clk 0:01:35]} 17. Ned5 {[%clk 0:01:48]}  Bh6 {[%clk 0:01:35]} 18. g3 {[%clk 0:01:38]}  Bg4 {[%clk 0:01:32]} 19. Re1 {[%clk 0:01:33]}  Nc6 {[%clk 0:01:31]} 20. Be2 {[%clk 0:01:26]}  Bg7 {[%clk 0:01:09]} 21. h3 {[%clk 0:01:24]}  Bxe2 {[%clk 0:01:06]} 22. Rxe2 {[%clk 0:01:25]}  e6 {[%clk 0:01:04]} 23. Ne3 {[%clk 0:01:10]}  Bf8 {[%clk 0:00:57]} 24. c3 {[%clk 0:01:04]}  Be7 {[%clk 0:00:57]} 25. b4 {[%clk 0:00:51]}  Rb8 {[%clk 0:00:28]} 26. a4 {[%clk 0:00:50]}  Bd8 {[%clk 0:00:25]} 27. Nbc4 {[%clk 0:00:44]}  Bc7 {[%clk 0:00:25]} 28. b5 {[%clk 0:00:41]}  axb5 {[%clk 0:00:25]} 29. axb5 {[%clk 0:00:41]}  Ne7 {[%clk 0:00:13]} 30. b6 {[%clk 0:00:40]}  Bd8 {[%clk 0:00:13]} 31. Rd1 {[%clk 0:00:35]}  Kf8 {[%clk 0:00:04]} 32. Rxd6 {[%clk 0:00:33]}  Kg7 {[%clk 0:00:05]} 33. Rd7 {[%clk 0:00:31]}  Nc8 {[%clk 0:00:02]} 34. f5 {[%clk 0:00:27]}  Nxb6 {[%clk 0:00:02]} 35. Nxb6 {[%clk 0:00:26]}  Bxb6 {[%clk 0:00:03]} 36. fxe6 {[%clk 0:00:26]}  Rhf8 {[%clk 0:00:02]} 37. Nf5+ {[%clk 0:00:25]}  Kg6 {[%clk 0:00:01]} 38. e7 {[%clk 0:00:25]}  Rfe8 {[%clk 0:00:01]} 39. Nd6 {[%clk 0:00:25]}  Rg8 {[%clk 0:00:01]} 40. e8=Q {[%clk 0:00:17]}  Rgxe8 {[%clk 0:00:01]} 41. Nxe8 {[%clk 0:00:18]}  Rxe8 {[%clk 0:00:01]} 42. Rxb7 {[%clk 0:00:19]}  Bg1 {[%clk 0:00:01]} 43. Kc2 {[%clk 0:00:18]}  Bc5 {[%clk 0:00:01]} 44. Rb5 {[%clk 0:00:17]}  Bd6 {[%clk 0:00:01]} 45. g4 {[%clk 0:00:16]}  hxg4 {[%clk 0:00:02]} 46. hxg4 {[%clk 0:00:17]}  Be5 {[%clk 0:00:03]} 47. c4 {[%clk 0:00:15]}  Rc8 {[%clk 0:00:03]} 48. c5 {[%clk 0:00:12]}  Rd8 {[%clk 0:00:03]} 49. Rd2 {[%clk 0:00:11]}  Ra8 {[%clk 0:00:02]} 50. Kd3 {[%clk 0:00:11]}  Kg5 {[%clk 0:00:03]} 51. c6 {[%clk 0:00:08]}  Ra3+ {[%clk 0:00:01]} 52. Kc4 {[%clk 0:00:08]}  Rc3+ {[%clk 0:00:02]} 53. Kd5 {[%clk 0:00:09]}  Kxg4 {[%clk 0:00:02]} 54. Rc5 {[%clk 0:00:08]}  Ra3 {[%clk 0:00:02]} 55. c7 {[%clk 0:00:08]} 1-0


[Site "https://www.chess.com"]

[Event "Titled Tuesday Blitz October 18 Late 2022"]
[White "Bok, Benjamin"]
[Black "Vivekananthan, Anish"]
[WhiteFideId "1017063"]
[BlackFideId "2090775"]
[WhiteElo "2658"]
[BlackElo "2736"]
[Result "1-0"]
[Round "03"]
[TimeControl "180+1"]
[Date "2022.10.18"]
[WhiteClock "0:01:12"]
[BlackClock "0:00:31"]

1. d4 {[%clk 0:03:00]}  Nf6 {[%clk 0:02:59]} 2. c4 {[%clk 0:03:00]}  e6 {[%clk 0:03:00]} 3. Nc3 {[%clk 0:02:58]}  Bb4 {[%clk 0:02:59]} 4. Qc2 {[%clk 0:02:59]}  d5 {[%clk 0:02:57]} 5. a3 {[%clk 0:02:58]}  Bxc3+ {[%clk 0:02:55]} 6. Qxc3 {[%clk 0:02:59]}  O-O {[%clk 0:02:55]} 7. Bg5 {[%clk 0:02:59]}  dxc4 {[%clk 0:02:54]} 8. Qxc4 {[%clk 0:03:00]}  b6 {[%clk 0:02:55]} 9. Rd1 {[%clk 0:03:00]}  Bb7 {[%clk 0:02:47]} 10. f3 {[%clk 0:03:00]}  Nbd7 {[%clk 0:02:27]} 11. e4 {[%clk 0:02:59]}  h6 {[%clk 0:02:28]} 12. Bh4 {[%clk 0:02:59]}  Qc8 {[%clk 0:02:27]} 13. Ne2 {[%clk 0:02:57]}  c5 {[%clk 0:02:26]} 14. Nc3 {[%clk 0:02:57]}  Re8 {[%clk 0:02:17]} 15. Be2 {[%clk 0:02:35]}  a6 {[%clk 0:02:14]} 16. O-O {[%clk 0:02:25]}  b5 {[%clk 0:02:11]} 17. Qd3 {[%clk 0:02:25]}  cxd4 {[%clk 0:02:05]} 18. Qxd4 {[%clk 0:02:26]}  Qc5 {[%clk 0:02:05]} 19. Qxc5 {[%clk 0:02:05]}  Nxc5 {[%clk 0:02:05]} 20. Rd6 {[%clk 0:02:06]}  Rac8 {[%clk 0:02:00]} 21. Rfd1 {[%clk 0:02:06]}  Nh5 {[%clk 0:01:47]} 22. Bf2 {[%clk 0:02:01]}  Nf4 {[%clk 0:01:44]} 23. Bf1 {[%clk 0:02:02]}  Nb3 {[%clk 0:01:10]} 24. Rb6 {[%clk 0:01:40]}  Rc7 {[%clk 0:01:10]} 25. a4 {[%clk 0:01:33]}  bxa4 {[%clk 0:01:06]} 26. Nxa4 {[%clk 0:01:33]}  Nc1 {[%clk 0:01:01]} 27. Nc5 {[%clk 0:01:12]}  Nce2+ {[%clk 0:00:30]} 28. Bxe2 {[%clk 0:01:12]}  Nxe2+ {[%clk 0:00:31]} 29. Kf1 {[%clk 0:01:12]} 1-0


[Site "https://www.chess.com"]

[Event "Titled Tuesday Blitz October 18 Late 2022"]
[White "Burke, Paul"]
[Black "Sibilio, Mario"]
[WhiteFideId "2605767"]
[BlackFideId "800422"]
[WhiteElo "1875"]
[BlackElo "2296"]
[Result "1/2-1/2"]
[Round "03"]
[TimeControl "180+1"]
[Date "2022.10.19"]
[WhiteClock "0:01:21"]
[BlackClock "0:00:36"]

1. e4 {[%clk 0:03:00]}  c5 {[%clk 0:02:51]} 2. d4 {[%clk 0:03:00]}  cxd4 {[%clk 0:02:47]} 3. c3 {[%clk 0:03:00]}  d3 {[%clk 0:02:46]} 4. Bxd3 {[%clk 0:02:59]}  Nc6 {[%clk 0:02:45]} 5. Nf3 {[%clk 0:02:59]}  g6 {[%clk 0:02:45]} 6. Bc4 {[%clk 0:02:58]}  Bg7 {[%clk 0:02:43]} 7. Bg5 {[%clk 0:02:58]}  d6 {[%clk 0:02:40]} 8. Qb3 {[%clk 0:02:57]}  Nh6 {[%clk 0:02:16]} 9. Bxh6 {[%clk 0:02:57]}  Bxh6 {[%clk 0:02:14]} 10. Bxf7+ {[%clk 0:02:56]}  Kf8 {[%clk 0:02:14]} 11. Bd5 {[%clk 0:02:55]}  Na5 {[%clk 0:02:09]} 12. Qc2 {[%clk 0:02:40]}  e6 {[%clk 0:02:07]} 13. Bb3 {[%clk 0:02:39]}  Kg7 {[%clk 0:02:01]} 14. Nbd2 {[%clk 0:02:38]}  Rf8 {[%clk 0:01:54]} 15. O-O {[%clk 0:02:29]}  e5 {[%clk 0:01:43]} 16. Rad1 {[%clk 0:02:17]}  Bg4 {[%clk 0:01:37]} 17. h3 {[%clk 0:01:49]}  Bxf3 {[%clk 0:01:08]} 18. Nxf3 {[%clk 0:01:48]}  Rxf3 {[%clk 0:01:08]} 19. gxf3 {[%clk 0:01:46]}  Qh4 {[%clk 0:00:50]} 20. Kg2 {[%clk 0:01:37]}  Qg5+ {[%clk 0:00:49]} 21. Kh2 {[%clk 0:01:23]}  Qf4+ {[%clk 0:00:46]} 22. Kg2 {[%clk 0:01:21]}  Qg5+ {[%clk 0:00:45]} 23. Kh2 {[%clk 0:01:21]}  Qf4+ {[%clk 0:00:39]} 24. Kg2 {[%clk 0:01:21]}  Qg5+ {[%clk 0:00:36]} 1/2-1/2


[Site "https://www.chess.com"]